[Event "Early-Titled-Tuesday-Blitz-October-24-2023"]
[Site "Chess.com"]
[Date "2023.10.24"]
[Round "2"]
[White "Nyzhnyk_Illia"]
[Black "biostatistician"]
[Result "1-0"]
[WhiteElo "2841"]
[BlackElo "2562"]
[TimeControl "180+1"]
[EndTime "8:16:08 PDT"]
[Termination "Nyzhnyk_Illia won by checkmate"]

1. Nf3 {[%clk 0:03:00.9]} 1... Nf6 {[%clk 0:03:00]} 2. g3 {[%clk 0:02:59.7]}
2... b6 {[%clk 0:02:59.9]} 3. Bg2 {[%clk 0:03:00]} 3... Bb7 {[%clk 0:03:00.8]}
4. c4 {[%clk 0:03:00.5]} 4... g6 {[%clk 0:03:01.2]} 5. O-O {[%clk 0:03:00.7]}
5... Bg7 {[%clk 0:03:01.6]} 6. d4 {[%clk 0:03:01.2]} 6... O-O {[%clk 0:03:01.6]}
7. Nc3 {[%clk 0:03:01.6]} 7... Ne4 {[%clk 0:03:01.9]} 8. Bd2 {[%clk 0:02:55.5]}
8... e6 {[%clk 0:03:00.7]} 9. Qc2 {[%clk 0:02:55.3]} 9... Nxd2 {[%clk
0:02:57.8]} 10. Qxd2 {[%clk 0:02:55.7]} 10... d6 {[%clk 0:02:55.1]} 11. e4
{[%clk 0:02:55.9]} 11... Nd7 {[%clk 0:02:53]} 12. d5 {[%clk 0:02:53.9]} 12...
Qe7 {[%clk 0:02:50.8]} 13. Nd4 {[%clk 0:02:51]} 13... Bxd4 {[%clk 0:02:29.7]}
14. Qxd4 {[%clk 0:02:50.7]} 14... e5 {[%clk 0:02:29.8]} 15. Qe3 {[%clk
0:02:49.8]} 15... a6 {[%clk 0:02:21.6]} 16. b4 {[%clk 0:02:44.4]} 16... f5
{[%clk 0:02:17.8]} 17. exf5 {[%clk 0:02:41.6]} 17... gxf5 {[%clk 0:02:17.7]} 18.
f4 {[%clk 0:02:42.1]} 18... Rae8 {[%clk 0:02:11.6]} 19. Rae1 {[%clk 0:02:39.7]}
19... e4 {[%clk 0:02:02.3]} 20. Ne2 {[%clk 0:02:38.6]} 20... Nf6 {[%clk
0:02:00.3]} 21. Nd4 {[%clk 0:02:38.4]} 21... Bc8 {[%clk 0:01:58.6]} 22. Bh3
{[%clk 0:02:35.8]} 22... Nh5 {[%clk 0:01:48.7]} 23. Kh1 {[%clk 0:02:29]} 23...
Ng7 {[%clk 0:01:46.3]} 24. Rc1 {[%clk 0:02:21.7]} 24... Bd7 {[%clk 0:01:37.8]}
25. c5 {[%clk 0:02:13.5]} 25... dxc5 {[%clk 0:01:38.7]} 26. bxc5 {[%clk
0:02:13.4]} 26... bxc5 {[%clk 0:01:39.6]} 27. Ne2 {[%clk 0:02:14]} 27... Bb5
{[%clk 0:01:38.1]} 28. Rfd1 {[%clk 0:02:14]} 28... Bd3 {[%clk 0:01:30.6]} 29.
Nc3 {[%clk 0:02:05.7]} 29... c4 {[%clk 0:01:30.4]} 30. Rd2 {[%clk 0:02:03.3]}
30... Qa3 {[%clk 0:01:27.4]} 31. Rg2 {[%clk 0:01:57.1]} 31... h5 {[%clk
0:01:25.2]} 32. Rgg1 {[%clk 0:01:56.8]} 32... Rb8 {[%clk 0:01:21.8]} 33. Bf1
{[%clk 0:01:49.4]} 33... Rb2 {[%clk 0:01:15]} 34. h3 {[%clk 0:01:47.9]} 34...
Kf7 {[%clk 0:01:07.3]} 35. Qa7 {[%clk 0:01:39.7]} 35... Rc8 {[%clk 0:00:53.3]}
36. Bg2 {[%clk 0:01:35.6]} 36... Qd6 {[%clk 0:00:46.6]} 37. Qd4 {[%clk
0:01:33.6]} 37... Qf6 {[%clk 0:00:44.1]} 38. Qe5 {[%clk 0:01:29.1]} 38... Qxe5
{[%clk 0:00:27.6]} 39. fxe5 {[%clk 0:01:30]} 39... h4 {[%clk 0:00:28.2]} 40. g4
{[%clk 0:01:29.5]} 40... e3 {[%clk 0:00:16.8]} 41. Rce1 {[%clk 0:01:29.3]} 41...
e2 {[%clk 0:00:16.4]} 42. Bf3 {[%clk 0:01:30]} 42... fxg4 {[%clk 0:00:15.5]} 43.
hxg4 {[%clk 0:01:30.3]} 43... Rf8 {[%clk 0:00:12]} 44. Bxe2 {[%clk 0:01:29.8]}
44... Kg6 {[%clk 0:00:12.1]} 45. Rg2 {[%clk 0:01:27.7]} 45... Bxe2 {[%clk
0:00:11.3]} 46. Rgxe2 {[%clk 0:01:26.4]} 46... Rxe2 {[%clk 0:00:11]} 47. Rxe2
{[%clk 0:01:27.3]} 47... Kg5 {[%clk 0:00:10.8]} 48. Ne4+ {[%clk 0:01:23.1]}
48... Kxg4 {[%clk 0:00:08.9]} 49. Rg2+ {[%clk 0:01:21.9]} 49... Kh3 {[%clk
0:00:09]} 50. Ng5# {[%clk 0:01:21.1]} 1-0

[Event "Early-Titled-Tuesday-Blitz-October-24-2023"]
[Site "Chess.com"]
[Date "2023.10.24"]
[Round "2"]
[White "RETURNOFTHELAGGER"]
[Black "salomez"]
[Result "1-0"]
[WhiteElo "2666"]
[BlackElo "2363"]
[TimeControl "180+1"]
[EndTime "8:16:08 PDT"]
[Termination "RETURNOFTHELAGGER won on time"]

1. e4 {[%clk 0:03:00.9]} 1... c5 {[%clk 0:02:59.6]} 2. Nf3 {[%clk 0:02:59.8]}
2... Nc6 {[%clk 0:02:59]} 3. d4 {[%clk 0:02:58.8]} 3... cxd4 {[%clk 0:02:57.2]}
4. Nxd4 {[%clk 0:02:59.7]} 4... Nf6 {[%clk 0:02:57.3]} 5. Nc3 {[%clk 0:03:00]}
5... e5 {[%clk 0:02:57.8]} 6. Ndb5 {[%clk 0:02:59.1]} 6... d6 {[%clk 0:02:58.3]}
7. Bg5 {[%clk 0:02:58.3]} 7... a6 {[%clk 0:02:56.2]} 8. Na3 {[%clk 0:02:57.8]}
8... b5 {[%clk 0:02:55.3]} 9. Nd5 {[%clk 0:02:56.7]} 9... Be7 {[%clk 0:02:54.9]}
10. Bxf6 {[%clk 0:02:55.2]} 10... Bxf6 {[%clk 0:02:55.8]} 11. c3 {[%clk
0:02:52.8]} 11... Rb8 {[%clk 0:02:52.6]} 12. Nc2 {[%clk 0:02:50.2]} 12... Bg5
{[%clk 0:02:51.5]} 13. a4 {[%clk 0:02:47.4]} 13... bxa4 {[%clk 0:02:45.9]} 14.
Ncb4 {[%clk 0:02:46.6]} 14... Nxb4 {[%clk 0:02:41.2]} 15. Nxb4 {[%clk
0:02:47.5]} 15... Bd7 {[%clk 0:02:12]} 16. Bxa6 {[%clk 0:02:43.4]} 16... O-O
{[%clk 0:01:17.4]} 17. O-O {[%clk 0:02:40.4]} 17... Qb6 {[%clk 0:01:02.2]} 18.
Bc4 {[%clk 0:02:35.2]} 18... Kh8 {[%clk 0:00:55.4]} 19. Qh5 {[%clk 0:02:28.8]}
19... f6 {[%clk 0:00:42.8]} 20. Rfe1 {[%clk 0:02:18]} 20... g6 {[%clk
0:00:32.5]} 21. Qe2 {[%clk 0:02:16.2]} 21... f5 {[%clk 0:00:30.8]} 22. exf5
{[%clk 0:02:16.9]} 22... gxf5 {[%clk 0:00:30.1]} 23. Rad1 {[%clk 0:02:12.9]}
23... Rbc8 {[%clk 0:00:15.4]} 24. Qh5 {[%clk 0:02:03.1]} 24... Bf6 {[%clk
0:00:13.9]} 25. Ba2 {[%clk 0:01:58.4]} 25... Bg7 {[%clk 0:00:12.4]} 26. Rd2
{[%clk 0:01:51.6]} 26... Rf6 {[%clk 0:00:11.3]} 27. Red1 {[%clk 0:01:49.7]}
27... Rh6 {[%clk 0:00:10.6]} 28. Qf7 {[%clk 0:01:47.1]} 28... Bb5 {[%clk
0:00:06.2]} 29. Qxf5 {[%clk 0:01:43.1]} 29... Rf8 {[%clk 0:00:05.7]} 30. Qe4
{[%clk 0:01:38.5]} 30... Qd8 {[%clk 0:00:03.3]} 31. f3 {[%clk 0:01:35.6]} 31...
Rh4 {[%clk 0:00:03.1]} 32. Qd5 {[%clk 0:01:32.1]} 32... e4 {[%clk 0:00:02.8]}
33. Qxb5 {[%clk 0:01:26.2]} 33... exf3 {[%clk 0:00:02.4]} 34. g3 {[%clk
0:01:25.3]} 34... Rxh2 {[%clk 0:00:02.1]} 35. Kxh2 {[%clk 0:01:21.3]} 35... Qf6
{[%clk 0:00:02.1]} 36. Rxd6 {[%clk 0:01:17]} 1-0

[Event "Early-Titled-Tuesday-Blitz-October-24-2023"]
[Site "Chess.com"]
[Date "2023.10.24"]
[Round "2"]
[White "brm72"]
[Black "twitchTriniCupid"]
[Result "1-0"]
[WhiteElo "2541"]
[BlackElo "2312"]
[TimeControl "180+1"]
[EndTime "8:16:10 PDT"]
[Termination "brm72 won on time"]

1. e4 {[%clk 0:03:00.9]} 1... c6 {[%clk 0:02:59.3]} 2. Nf3 {[%clk 0:03:00.5]}
2... d5 {[%clk 0:02:59.4]} 3. Nc3 {[%clk 0:03:01.1]} 3... Bg4 {[%clk 0:02:59.2]}
4. h3 {[%clk 0:03:00.8]} 4... Bxf3 {[%clk 0:02:59.1]} 5. Qxf3 {[%clk 0:03:00.6]}
5... Nf6 {[%clk 0:02:59.7]} 6. b3 {[%clk 0:02:59.6]} 6... e6 {[%clk 0:02:49]} 7.
Bb2 {[%clk 0:02:58.9]} 7... Bb4 {[%clk 0:02:47.1]} 8. exd5 {[%clk 0:02:53.7]}
8... cxd5 {[%clk 0:02:41.7]} 9. O-O-O {[%clk 0:02:52]} 9... Qe7 {[%clk 0:02:28]}
10. Bb5+ {[%clk 0:02:47.5]} 10... Nc6 {[%clk 0:02:27.2]} 11. Rhe1 {[%clk
0:02:45.5]} 11... Ba3 {[%clk 0:02:17]} 12. g4 {[%clk 0:02:36.9]} 12... a6 {[%clk
0:01:57.8]} 13. Bxc6+ {[%clk 0:02:34.8]} 13... bxc6 {[%clk 0:01:57.9]} 14. Qf4
{[%clk 0:02:17]} 14... O-O {[%clk 0:01:53.9]} 15. d4 {[%clk 0:02:02.2]} 15...
Rfc8 {[%clk 0:01:49.9]} 16. Na4 {[%clk 0:01:55.9]} 16... Nd7 {[%clk 0:01:44.8]}
17. Rd3 {[%clk 0:01:43.7]} 17... Rab8 {[%clk 0:01:35.5]} 18. g5 {[%clk
0:01:38.4]} 18... Bb4 {[%clk 0:01:09.5]} 19. Rg1 {[%clk 0:01:30.7]} 19... a5
{[%clk 0:01:05.5]} 20. h4 {[%clk 0:01:29.8]} 20... Nb6 {[%clk 0:01:00.3]} 21.
Nxb6 {[%clk 0:01:25.9]} 21... Rxb6 {[%clk 0:00:59.8]} 22. h5 {[%clk 0:01:25.6]}
22... a4 {[%clk 0:00:57.9]} 23. g6 {[%clk 0:01:22]} 23... fxg6 {[%clk
0:00:57.2]} 24. hxg6 {[%clk 0:01:18.2]} 24... h6 {[%clk 0:00:56.6]} 25. Re3
{[%clk 0:01:14.6]} 25... axb3 {[%clk 0:00:45.9]} 26. axb3 {[%clk 0:01:12.8]}
26... Ba3 {[%clk 0:00:27.6]} 27. Qf7+ {[%clk 0:01:08.7]} 27... Kh8 {[%clk
0:00:16.5]} 28. Rxe6 {[%clk 0:01:04.4]} 28... Bxb2+ {[%clk 0:00:15.9]} 29. Kxb2
{[%clk 0:01:03.5]} 29... Qf8 {[%clk 0:00:05.8]} 30. Rh1 {[%clk 0:00:58]} 30...
Qxf7 {[%clk 0:00:03.5]} 31. gxf7 {[%clk 0:00:58]} 31... Rf8 {[%clk 0:00:01]} 32.
Re8 {[%clk 0:00:54.2]} 32... Rb8 {[%clk 0:00:01]} 33. Rhe1 {[%clk 0:00:54.8]}
33... Rbxe8 {[%clk 0:00:01.5]} 34. Rxe8 {[%clk 0:00:52.8]} 1-0

[Event "Early-Titled-Tuesday-Blitz-October-24-2023"]
[Site "Chess.com"]
[Date "2023.10.24"]
[Round "2"]
[White "Yeremyan_ChessMate"]
[Black "MFatigue"]
[Result "1-0"]
[WhiteElo "2755"]
[BlackElo "2483"]
[TimeControl "180+1"]
[EndTime "8:16:12 PDT"]
[Termination "Yeremyan_ChessMate won by resignation"]

1. e4 {[%clk 0:03:00.9]} 1... e6 {[%clk 0:02:59.8]} 2. Nc3 {[%clk 0:03:00.7]}
2... d5 {[%clk 0:03:00.1]} 3. Qe2 {[%clk 0:03:01.5]} 3... Nf6 {[%clk 0:02:55.2]}
4. g3 {[%clk 0:02:58.5]} 4... Be7 {[%clk 0:02:54.5]} 5. Bg2 {[%clk 0:02:58.6]}
5... O-O {[%clk 0:02:54.9]} 6. e5 {[%clk 0:02:59.2]} 6... Nfd7 {[%clk
0:02:54.5]} 7. f4 {[%clk 0:03:00]} 7... c5 {[%clk 0:02:55]} 8. Nf3 {[%clk
0:03:00.6]} 8... Nc6 {[%clk 0:02:55.7]} 9. O-O {[%clk 0:03:01.2]} 9... f6 {[%clk
0:02:47.1]} 10. exf6 {[%clk 0:02:57.6]} 10... Nxf6 {[%clk 0:02:48]} 11. Ng5
{[%clk 0:02:57.5]} 11... Nd4 {[%clk 0:02:38.3]} 12. Qd1 {[%clk 0:02:57.7]} 12...
h6 {[%clk 0:02:37.5]} 13. Nf3 {[%clk 0:02:58.2]} 13... Nc6 {[%clk 0:02:17.7]}
14. d3 {[%clk 0:02:57.8]} 14... Bd6 {[%clk 0:02:14.1]} 15. Re1 {[%clk
0:02:57.8]} 15... a6 {[%clk 0:02:06.9]} 16. Bd2 {[%clk 0:02:57.6]} 16... Qc7
{[%clk 0:02:06.8]} 17. Ne2 {[%clk 0:02:48.1]} 17... e5 {[%clk 0:02:04.9]} 18.
fxe5 {[%clk 0:02:48.8]} 18... Nxe5 {[%clk 0:02:05.6]} 19. Nf4 {[%clk 0:02:49.5]}
19... Bg4 {[%clk 0:02:02.4]} 20. h3 {[%clk 0:02:26.2]} 20... Bxf3 {[%clk
0:02:02.3]} 21. Bxf3 {[%clk 0:02:26.7]} 21... Rae8 {[%clk 0:01:11.3]} 22. Bg2
{[%clk 0:02:18.6]} 22... d4 {[%clk 0:01:05.5]} 23. Kh1 {[%clk 0:02:06.9]} 23...
g5 {[%clk 0:01:05.8]} 24. Nh5 {[%clk 0:02:02.9]} 24... Ned7 {[%clk 0:00:49.7]}
25. Nxf6+ {[%clk 0:01:59.8]} 25... Nxf6 {[%clk 0:00:50.6]} 26. Qf3 {[%clk
0:01:54.8]} 26... b5 {[%clk 0:00:28.2]} 27. Rxe8 {[%clk 0:01:46.8]} 27... Nxe8
{[%clk 0:00:25.8]} 28. Qd5+ {[%clk 0:01:47.5]} 28... Qf7 {[%clk 0:00:26.4]} 29.
Qc6 {[%clk 0:01:43.2]} 29... Kg7 {[%clk 0:00:09.7]} 30. Rf1 {[%clk 0:01:43.4]}
30... Qc7 {[%clk 0:00:07.5]} 31. Rxf8 {[%clk 0:01:37.4]} 31... Kxf8 {[%clk
0:00:08.4]} 32. Qxa6 {[%clk 0:01:35.7]} 32... Bxg3 {[%clk 0:00:08.9]} 33. Qxb5
{[%clk 0:01:34.7]} 33... Nd6 {[%clk 0:00:08]} 34. Qa6 {[%clk 0:01:32.6]} 34...
Kg7 {[%clk 0:00:06.8]} 35. Qa8 {[%clk 0:01:32.5]} 35... Nf5 {[%clk 0:00:07]} 36.
Qd5 {[%clk 0:01:31.4]} 36... Qe5 {[%clk 0:00:06.3]} 37. Qxe5+ {[%clk 0:01:31.7]}
37... Bxe5 {[%clk 0:00:07.2]} 38. a4 {[%clk 0:01:31.9]} 38... Nd6 {[%clk
0:00:07.5]} 39. a5 {[%clk 0:01:31.5]} 39... Nc8 {[%clk 0:00:07.8]} 40. a6 {[%clk
0:01:30.4]} 40... Kf6 {[%clk 0:00:07.6]} 41. Ba5 {[%clk 0:01:31.1]} 41... Bb8
{[%clk 0:00:06.9]} 42. Bb7 {[%clk 0:01:28.1]} 42... Na7 {[%clk 0:00:06.1]} 43.
Bb6 {[%clk 0:01:28.1]} 43... Nb5 {[%clk 0:00:04.4]} 44. Bxc5 {[%clk 0:01:27.7]}
44... Ke5 {[%clk 0:00:05.3]} 45. Kg2 {[%clk 0:01:26.1]} 45... h5 {[%clk
0:00:05.1]} 46. Bc6 {[%clk 0:01:23.3]} 46... Na7 {[%clk 0:00:04.4]} 47. Bf3
{[%clk 0:01:23.9]} 47... h4 {[%clk 0:00:04]} 48. c3 {[%clk 0:01:23.4]} 48... Kf4
{[%clk 0:00:04.9]} 49. Bxd4 {[%clk 0:01:22.3]} 1-0

[Event "Early-Titled-Tuesday-Blitz-October-24-2023"]
[Site "Chess.com"]
[Date "2023.10.24"]
[Round "2"]
[White "Lion_DL"]
[Black "MikeSailer"]
[Result "1-0"]
[WhiteElo "2428"]
[BlackElo "2041"]
[TimeControl "180+1"]
[EndTime "8:16:16 PDT"]
[Termination "Lion_DL won by resignation"]

1. d4 {[%clk 0:03:00.9]} 1... d5 {[%clk 0:02:54.4]} 2. c4 {[%clk 0:03:01.1]}
2... Bf5 {[%clk 0:02:53]} 3. Nc3 {[%clk 0:02:55.2]} 3... e6 {[%clk 0:02:52.1]}
4. cxd5 {[%clk 0:02:52.9]} 4... exd5 {[%clk 0:02:51]} 5. Qb3 {[%clk 0:02:49.7]}
5... Nc6 {[%clk 0:02:48.1]} 6. Be3 {[%clk 0:02:35]} 6... Bb4 {[%clk 0:02:30.4]}
7. Nf3 {[%clk 0:02:30.7]} 7... Nf6 {[%clk 0:02:28.6]} 8. g3 {[%clk 0:02:24.8]}
8... O-O {[%clk 0:02:25.7]} 9. Bg2 {[%clk 0:02:24.5]} 9... Re8 {[%clk
0:02:23.3]} 10. h3 {[%clk 0:02:17.1]} 10... Ne4 {[%clk 0:02:18.9]} 11. O-O
{[%clk 0:02:16.3]} 11... Nxg3 {[%clk 0:02:12.2]} 12. fxg3 {[%clk 0:02:10.8]}
12... Rxe3 {[%clk 0:02:09.8]} 13. Qxd5 {[%clk 0:02:02]} 13... Bxc3 {[%clk
0:02:01.5]} 14. Qxf5 {[%clk 0:01:35.1]} 14... Bxb2 {[%clk 0:01:55.7]} 15. Rad1
{[%clk 0:01:35.4]} 15... Rxe2 {[%clk 0:01:47.5]} 16. Ne5 {[%clk 0:01:32.2]}
16... Nxe5 {[%clk 0:01:41.9]} 17. dxe5 {[%clk 0:01:32]} 17... Bd4+ {[%clk
0:01:19.1]} 18. Kh1 {[%clk 0:01:27.5]} 18... c5 {[%clk 0:00:42.5]} 19. Qxf7+
{[%clk 0:01:19.5]} 19... Kh8 {[%clk 0:00:42.8]} 20. e6 {[%clk 0:01:08.2]} 20...
Qe8 {[%clk 0:00:41.9]} 21. Bxb7 {[%clk 0:00:57.3]} 21... Rb8 {[%clk 0:00:39]}
22. Bc6 {[%clk 0:00:50.3]} 22... Qxe6 {[%clk 0:00:32.2]} 23. Qf8+ {[%clk
0:00:29.3]} 23... Rxf8 {[%clk 0:00:31.6]} 24. Rxf8+ {[%clk 0:00:30.2]} 24... Qg8
{[%clk 0:00:31.4]} 25. Rxg8+ {[%clk 0:00:31]} 25... Kxg8 {[%clk 0:00:31.8]} 26.
Rb1 {[%clk 0:00:29.7]} 26... Rxa2 {[%clk 0:00:19.1]} 27. Bd5+ {[%clk 0:00:29.3]}
27... Kf8 {[%clk 0:00:19.2]} 28. Bxa2 {[%clk 0:00:30.2]} 1-0

[Event "Early-Titled-Tuesday-Blitz-October-24-2023"]
[Site "Chess.com"]
[Date "2023.10.24"]
[Round "2"]
[White "Alex_Sahakyan2006"]
[Black "Smiechu"]
[Result "1-0"]
[WhiteElo "2739"]
[BlackElo "2505"]
[TimeControl "180+1"]
[EndTime "8:16:19 PDT"]
[Termination "Alex_Sahakyan2006 won by resignation"]

1. b3 {[%clk 0:03:00.9]} 1... e5 {[%clk 0:02:57]} 2. Bb2 {[%clk 0:03:00.9]} 2...
Nc6 {[%clk 0:02:56.9]} 3. e3 {[%clk 0:03:00.6]} 3... Nf6 {[%clk 0:02:57.1]} 4.
Nf3 {[%clk 0:03:00.2]} 4... Bd6 {[%clk 0:02:41.5]} 5. Bb5 {[%clk 0:02:57.1]}
5... Qe7 {[%clk 0:02:39.7]} 6. d4 {[%clk 0:02:41.4]} 6... exd4 {[%clk
0:02:34.9]} 7. Nxd4 {[%clk 0:02:41.4]} 7... Nxd4 {[%clk 0:02:27.5]} 8. Qxd4
{[%clk 0:02:39.3]} 8... Bc5 {[%clk 0:02:19]} 9. Qf4 {[%clk 0:02:32.1]} 9... c6
{[%clk 0:02:15.1]} 10. Bd3 {[%clk 0:02:31]} 10... d5 {[%clk 0:02:13.1]} 11. Nd2
{[%clk 0:02:28.8]} 11... Bd6 {[%clk 0:02:12.6]} 12. Qh4 {[%clk 0:02:28.9]} 12...
Be6 {[%clk 0:02:07]} 13. Nf3 {[%clk 0:02:29.1]} 13... O-O-O {[%clk 0:02:01.1]}
14. O-O {[%clk 0:02:25.3]} 14... Rhg8 {[%clk 0:01:55.8]} 15. Qa4 {[%clk
0:02:25.3]} 15... Bb8 {[%clk 0:01:48.6]} 16. Bd4 {[%clk 0:02:21.7]} 16... c5
{[%clk 0:01:41.2]} 17. Qa3 {[%clk 0:02:22]} 17... b6 {[%clk 0:01:27.7]} 18. Ba6+
{[%clk 0:02:19.9]} 18... Kc7 {[%clk 0:01:19.5]} 19. Be5+ {[%clk 0:02:04.9]}
19... Rd6 {[%clk 0:01:19.4]} 20. b4 {[%clk 0:01:56.5]} 20... Nd7 {[%clk
0:01:19.1]} 21. bxc5 {[%clk 0:01:56.3]} 21... Nxc5 {[%clk 0:01:15.4]} 22. Nd4
{[%clk 0:01:56.3]} 22... Bd7 {[%clk 0:01:09.1]} 23. Bxd6+ {[%clk 0:01:43]} 23...
Qxd6 {[%clk 0:01:08.9]} 24. Bb5 {[%clk 0:01:40.7]} 24... Kd8 {[%clk 0:01:03.2]}
25. g3 {[%clk 0:01:40.6]} 25... h5 {[%clk 0:01:01]} 26. Bxd7 {[%clk 0:01:38]}
26... Qxd7 {[%clk 0:01:00.1]} 27. Rad1 {[%clk 0:01:36.4]} 27... h4 {[%clk
0:00:58.2]} 28. Nb3 {[%clk 0:01:18.9]} 28... hxg3 {[%clk 0:00:54.8]} 29. fxg3
{[%clk 0:01:07]} 29... Qh3 {[%clk 0:00:48.3]} 30. Rxd5+ {[%clk 0:01:02.6]} 30...
Ke8 {[%clk 0:00:45.4]} 31. Nxc5 {[%clk 0:00:26.9]} 31... Bxg3 {[%clk 0:00:43.9]}
32. Qa4+ {[%clk 0:00:27.2]} 32... Ke7 {[%clk 0:00:30.1]} 33. Qd7+ {[%clk
0:00:26.2]} 33... Qxd7 {[%clk 0:00:28.5]} 34. Rxd7+ {[%clk 0:00:27.1]} 1-0

[Event "Early-Titled-Tuesday-Blitz-October-24-2023"]
[Site "Chess.com"]
[Date "2023.10.24"]
[Round "2"]
[White "Arimin1329"]
[Black "Skatchkov_V"]
[Result "0-1"]
[WhiteElo "2310"]
[BlackElo "2543"]
[TimeControl "180+1"]
[EndTime "8:16:19 PDT"]
[Termination "Skatchkov_V won by resignation"]

1. Nf3 {[%clk 0:02:56.8]} 1... d5 {[%clk 0:02:59.8]} 2. d4 {[%clk 0:02:57.1]}
2... Nf6 {[%clk 0:02:59.7]} 3. g3 {[%clk 0:02:56.4]} 3... g6 {[%clk 0:02:57.2]}
4. Bg2 {[%clk 0:02:57.3]} 4... Bg7 {[%clk 0:02:57.5]} 5. b3 {[%clk 0:02:57.9]}
5... O-O {[%clk 0:02:57.6]} 6. Bb2 {[%clk 0:02:58.8]} 6... c6 {[%clk 0:02:55.9]}
7. O-O {[%clk 0:02:59.7]} 7... Bf5 {[%clk 0:02:55.3]} 8. Nh4 {[%clk 0:02:58.5]}
8... Be4 {[%clk 0:02:55.1]} 9. f3 {[%clk 0:02:56.2]} 9... Bf5 {[%clk 0:02:55.5]}
10. Nxf5 {[%clk 0:02:56.6]} 10... gxf5 {[%clk 0:02:56.4]} 11. Nd2 {[%clk
0:02:57.1]} 11... Nbd7 {[%clk 0:02:50.7]} 12. e4 {[%clk 0:02:46.8]} 12... fxe4
{[%clk 0:02:49.8]} 13. fxe4 {[%clk 0:02:47.4]} 13... Nxe4 {[%clk 0:02:49.7]} 14.
Nxe4 {[%clk 0:02:47.3]} 14... dxe4 {[%clk 0:02:50]} 15. Bxe4 {[%clk 0:02:40.2]}
15... e6 {[%clk 0:02:49.4]} 16. Qh5 {[%clk 0:02:29.5]} 16... f5 {[%clk
0:02:44.1]} 17. Bd3 {[%clk 0:02:20.2]} 17... Nc5 {[%clk 0:02:28.7]} 18. dxc5
{[%clk 0:02:02.6]} 18... Bxb2 {[%clk 0:02:27.5]} 19. Rae1 {[%clk 0:02:03.2]}
19... Bd4+ {[%clk 0:02:26.8]} 20. Kg2 {[%clk 0:02:00]} 20... Qd5+ {[%clk
0:02:27.2]} 21. Kh3 {[%clk 0:01:58.2]} 21... Kh8 {[%clk 0:01:37.8]} 22. Bc4
{[%clk 0:01:54]} 22... Qxc5 {[%clk 0:01:36.9]} 23. Rxe6 {[%clk 0:01:54]} 23...
Bg7 {[%clk 0:01:26.4]} 24. Bd3 {[%clk 0:01:48.3]} 24... Qd5 {[%clk 0:00:21.6]}
25. Rxf5 {[%clk 0:01:34.3]} 25... Qxe6 {[%clk 0:00:19.9]} 26. Kg2 {[%clk
0:01:21.3]} 26... Rxf5 {[%clk 0:00:18.5]} 27. Bxf5 {[%clk 0:01:18.5]} 27... Qh6
{[%clk 0:00:18.4]} 28. Qf7 {[%clk 0:01:17.4]} 28... Rf8 {[%clk 0:00:18.5]} 29.
Qd7 {[%clk 0:01:15.5]} 29... Qf6 {[%clk 0:00:18.1]} 30. g4 {[%clk 0:01:15.2]}
30... Qf7 {[%clk 0:00:17.1]} 31. Qd3 {[%clk 0:01:14.3]} 31... Bf6 {[%clk
0:00:11.8]} 32. Qe3 {[%clk 0:01:08.4]} 32... Qe7 {[%clk 0:00:10.9]} 33. Qd3
{[%clk 0:00:52.3]} 33... Rd8 {[%clk 0:00:10.4]} 34. Qe4 {[%clk 0:00:36.6]} 0-1

[Event "Early-Titled-Tuesday-Blitz-October-24-2023"]
[Site "Chess.com"]
[Date "2023.10.24"]
[Round "2"]
[White "Dewarfd"]
[Black "DefiantChair"]
[Result "0-1"]
[WhiteElo "2161"]
[BlackElo "2651"]
[TimeControl "180+1"]
[EndTime "8:16:21 PDT"]
[Termination "DefiantChair won on time"]

1. d4 {[%clk 0:02:59.8]} 1... Nf6 {[%clk 0:02:59.9]} 2. e3 {[%clk 0:03:00]} 2...
d5 {[%clk 0:03:00]} 3. Nf3 {[%clk 0:03:00.2]} 3... e6 {[%clk 0:02:57.5]} 4. Bd3
{[%clk 0:03:00]} 4... c5 {[%clk 0:02:57.8]} 5. b3 {[%clk 0:02:59.6]} 5... Nc6
{[%clk 0:02:55.9]} 6. a3 {[%clk 0:02:59.3]} 6... Bd6 {[%clk 0:02:55.8]} 7. Bb2
{[%clk 0:02:59]} 7... O-O {[%clk 0:02:56.1]} 8. O-O {[%clk 0:02:58.4]} 8... b6
{[%clk 0:02:56.2]} 9. Nbd2 {[%clk 0:02:55.2]} 9... Bb7 {[%clk 0:02:55.4]} 10. c4
{[%clk 0:02:49.7]} 10... cxd4 {[%clk 0:02:55.4]} 11. Nxd4 {[%clk 0:02:47.8]}
11... Rc8 {[%clk 0:02:54.5]} 12. cxd5 {[%clk 0:02:41.7]} 12... Nxd5 {[%clk
0:02:51.7]} 13. Nc4 {[%clk 0:02:41.3]} 13... Bb8 {[%clk 0:02:49]} 14. Qg4 {[%clk
0:02:27]} 14... Nf6 {[%clk 0:02:37.3]} 15. Qh3 {[%clk 0:02:22.7]} 15... Nxd4
{[%clk 0:02:23.3]} 16. Bxd4 {[%clk 0:02:18.4]} 16... e5 {[%clk 0:02:21.9]} 17.
Bxh7+ {[%clk 0:01:21.6]} 17... Nxh7 {[%clk 0:02:17.9]} 18. Nxe5 {[%clk
0:01:20.8]} 18... Ng5 {[%clk 0:01:58]} 19. Qg4 {[%clk 0:01:13.7]} 19... Ne6
{[%clk 0:01:36.8]} 20. Rfd1 {[%clk 0:00:55.4]} 20... Qg5 {[%clk 0:01:28.1]} 21.
Qxg5 {[%clk 0:00:46.3]} 21... Nxg5 {[%clk 0:01:29]} 22. Rac1 {[%clk 0:00:37.9]}
22... Ne6 {[%clk 0:01:24.4]} 23. Nd7 {[%clk 0:00:28.7]} 23... Nxd4 {[%clk
0:01:15.6]} 24. Rxc8 {[%clk 0:00:20.9]} 24... Rxc8 {[%clk 0:01:11.2]} 25. exd4
{[%clk 0:00:13.7]} 25... Bd6 {[%clk 0:01:11.4]} 26. Ne5 {[%clk 0:00:08.6]} 26...
Bxa3 {[%clk 0:01:09.7]} 27. Nc4 {[%clk 0:00:08.7]} 27... Bf8 {[%clk 0:01:09.7]}
28. h3 {[%clk 0:00:06.5]} 28... Rd8 {[%clk 0:01:09.6]} 29. Kf1 {[%clk
0:00:05.6]} 29... b5 {[%clk 0:01:00.9]} 30. Na5 {[%clk 0:00:05]} 30... Bd5
{[%clk 0:01:00.7]} 31. f3 {[%clk 0:00:03.4]} 31... Bb4 {[%clk 0:00:59.6]} 32.
Ra1 {[%clk 0:00:01.3]} 32... Rc8 {[%clk 0:00:59.3]} 0-1